[Event "*** Titled Tuesday Blitz"]
[Site "Chess.com"]
[Date "2021.03.09"]
[Round "7"]
[White "Herman-NY"]
[Black "fabianvivasz"]
[Result "1-0"]
[WhiteElo "2452"]
[BlackElo "2278"]
[TimeControl "180+1"]
[EndTime "11:21:50 PST"]
[Termination "Herman-NY won by checkmate"]

1. e4 {[%clk 0:03:00.9]} 1... e5 {[%clk 0:03:00.4]} 2. Nf3 {[%clk 0:03:01.2]}
2... Nc6 {[%clk 0:03:00.7]} 3. Bc4 {[%clk 0:03:01.8]} 3... Nf6 {[%clk
0:03:01.1]} 4. d3 {[%clk 0:03:02.3]} 4... Bc5 {[%clk 0:03:01.2]} 5. c3 {[%clk
0:03:02.7]} 5... O-O {[%clk 0:03:01.5]} 6. Bb3 {[%clk 0:03:03.2]} 6... d5 {[%clk
0:03:01.4]} 7. Qe2 {[%clk 0:03:03]} 7... dxe4 {[%clk 0:02:57.4]} 8. dxe4 {[%clk
0:03:03.9]} 8... a5 {[%clk 0:02:53.2]} 9. a4 {[%clk 0:03:00.4]} 9... Nh5 {[%clk
0:02:41.2]} 10. g3 {[%clk 0:02:59.3]} 10... Qf6 {[%clk 0:02:33.1]} 11. Nh4
{[%clk 0:02:18]} 11... Nf4 {[%clk 0:02:20.9]} 12. Bxf4 {[%clk 0:02:00.2]} 12...
exf4 {[%clk 0:02:20.7]} 13. Nd2 {[%clk 0:01:57.4]} 13... Ne5 {[%clk 0:02:10.8]}
14. O-O-O {[%clk 0:01:21.6]} 14... f3 {[%clk 0:01:38.4]} 15. Ndxf3 {[%clk
0:00:52.9]} 15... Bg4 {[%clk 0:01:35]} 16. Rd3 {[%clk 0:00:53.2]} 16... g5
{[%clk 0:01:16.3]} 17. Nf5 {[%clk 0:00:49.5]} 17... Rad8 {[%clk 0:01:02]} 18.
Rhd1 {[%clk 0:00:19.2]} 18... Rxd3 {[%clk 0:00:43.2]} 19. Rxd3 {[%clk
0:00:19.3]} 19... Rd8 {[%clk 0:00:28.5]} 20. Rxd8+ {[%clk 0:00:19]} 20... Qxd8
{[%clk 0:00:27.9]} 21. Nh6+ {[%clk 0:00:19.4]} 21... Kg7 {[%clk 0:00:21.3]} 22.
Nxg4 {[%clk 0:00:18.5]} 22... Nxg4 {[%clk 0:00:21.2]} 23. Nd4 {[%clk 0:00:17.3]}
23... Bxd4 {[%clk 0:00:15.7]} 24. Qxg4 {[%clk 0:00:17.6]} 24... Bf6 {[%clk
0:00:11.1]} 25. f4 {[%clk 0:00:15.7]} 25... Kh8 {[%clk 0:00:03.3]} 26. e5 {[%clk
0:00:15.9]} 26... Be7 {[%clk 0:00:02.7]} 27. Qf5 {[%clk 0:00:16.1]} 27... Qf8
{[%clk 0:00:02.1]} 28. Bxf7 {[%clk 0:00:15.7]} 28... Qg7 {[%clk 0:00:02]} 29.
Bc4 {[%clk 0:00:13]} 29... gxf4 {[%clk 0:00:02.1]} 30. gxf4 {[%clk 0:00:13.5]}
30... h6 {[%clk 0:00:02.1]} 31. Kc2 {[%clk 0:00:13.8]} 31... Qg2+ {[%clk
0:00:02.1]} 32. Kb3 {[%clk 0:00:14.1]} 32... Qg7 {[%clk 0:00:02.2]} 33. Qe6
{[%clk 0:00:12.6]} 33... c6 {[%clk 0:00:02.1]} 34. f5 {[%clk 0:00:12.8]} 34...
Bf8 {[%clk 0:00:01.6]} 35. f6 {[%clk 0:00:13.1]} 35... Qg6 {[%clk 0:00:01.6]}
36. h4 {[%clk 0:00:12.5]} 36... h5 {[%clk 0:00:01.6]} 37. Qc8 {[%clk 0:00:10.1]}
37... Qh6 {[%clk 0:00:01.5]} 38. Qe8 {[%clk 0:00:09.4]} 38... Kh7 {[%clk
0:00:01.2]} 39. Qf7+ {[%clk 0:00:09.6]} 39... Kh8 {[%clk 0:00:01.6]} 40. Qg8#
{[%clk 0:00:10]} 1-0

[Event "*** Titled Tuesday Blitz"]
[Site "Chess.com"]
[Date "2021.03.09"]
[Round "7"]
[White "S-Fazulyanov"]
[Black "GMKrikor"]
[Result "1/2-1/2"]
[WhiteElo "2546"]
[BlackElo "2704"]
[TimeControl "180+1"]
[EndTime "11:21:53 PST"]
[Termination "Game drawn by repetition"]

1. d4 {[%clk 0:03:00.9]} 1... Nf6 {[%clk 0:02:59.1]} 2. Nf3 {[%clk 0:03:01]}
2... g6 {[%clk 0:02:59.1]} 3. c4 {[%clk 0:03:00.3]} 3... Bg7 {[%clk 0:02:59.2]}
4. Nc3 {[%clk 0:03:00.6]} 4... d5 {[%clk 0:02:59.1]} 5. e3 {[%clk 0:03:00.6]}
5... O-O {[%clk 0:02:57.5]} 6. b3 {[%clk 0:02:55.2]} 6... c5 {[%clk 0:02:51.9]}
7. Bb2 {[%clk 0:02:50.9]} 7... cxd4 {[%clk 0:02:51.7]} 8. exd4 {[%clk
0:02:50.4]} 8... Nc6 {[%clk 0:02:51.1]} 9. Be2 {[%clk 0:02:44.1]} 9... Bg4
{[%clk 0:02:50.9]} 10. O-O {[%clk 0:02:42.7]} 10... e6 {[%clk 0:02:50.7]} 11. h3
{[%clk 0:02:37.9]} 11... Bxf3 {[%clk 0:02:18.6]} 12. Bxf3 {[%clk 0:02:38.8]}
12... dxc4 {[%clk 0:02:19.3]} 13. Bxc6 {[%clk 0:02:38.8]} 13... bxc6 {[%clk
0:02:20.2]} 14. bxc4 {[%clk 0:02:39.2]} 14... Rb8 {[%clk 0:02:20.6]} 15. Rb1
{[%clk 0:02:39]} 15... Qa5 {[%clk 0:02:12.2]} 16. Ba1 {[%clk 0:02:11.6]} 16...
Nh5 {[%clk 0:01:53.5]} 17. Qa4 {[%clk 0:01:41.4]} 17... Qxa4 {[%clk 0:01:11.2]}
18. Nxa4 {[%clk 0:01:40]} 18... Nf4 {[%clk 0:01:12.1]} 19. Rfe1 {[%clk
0:00:56.5]} 19... Ne2+ {[%clk 0:01:06]} 20. Kf1 {[%clk 0:00:55]} 20... Nxd4
{[%clk 0:01:06.5]} 21. Red1 {[%clk 0:00:46.9]} 21... Nc2 {[%clk 0:00:49.9]} 22.
Bxg7 {[%clk 0:00:43.4]} 22... Kxg7 {[%clk 0:00:50.8]} 23. Nc5 {[%clk 0:00:44]}
23... Na3 {[%clk 0:00:42.9]} 24. Rbc1 {[%clk 0:00:27.2]} 24... Rb4 {[%clk
0:00:37.4]} 25. Rd7 {[%clk 0:00:25.5]} 25... Re8 {[%clk 0:00:28.1]} 26. Rxa7
{[%clk 0:00:25]} 26... Rxc4 {[%clk 0:00:21.1]} 27. Rxc4 {[%clk 0:00:20.9]} 27...
Nxc4 {[%clk 0:00:21.9]} 28. Rc7 {[%clk 0:00:21.4]} 28... Kg8 {[%clk 0:00:06.7]}
29. a4 {[%clk 0:00:21.5]} 29... Na5 {[%clk 0:00:04.8]} 30. Ra7 {[%clk
0:00:21.1]} 30... Nc4 {[%clk 0:00:05.2]} 31. Rc7 {[%clk 0:00:21.3]} 31... Ra8
{[%clk 0:00:04]} 32. Rxc6 {[%clk 0:00:20.8]} 32... Ra5 {[%clk 0:00:02.6]} 33. g3
{[%clk 0:00:19.8]} 33... Ne5 {[%clk 0:00:03]} 34. Rc8+ {[%clk 0:00:19.7]} 34...
Kg7 {[%clk 0:00:03.6]} 35. Kg2 {[%clk 0:00:20.2]} 35... h5 {[%clk 0:00:03.6]}
36. Rc7 {[%clk 0:00:20.3]} 36... Kg8 {[%clk 0:00:03]} 37. Rc8+ {[%clk
0:00:20.4]} 37... Kg7 {[%clk 0:00:03.1]} 38. Rc7 {[%clk 0:00:21.3]} 38... Kg8
{[%clk 0:00:03.7]} 39. h4 {[%clk 0:00:21.8]} 39... Ng4 {[%clk 0:00:03.5]} 40.
Rc8+ {[%clk 0:00:21.3]} 40... Kg7 {[%clk 0:00:03.6]} 41. Rc7 {[%clk 0:00:21.9]}
41... Kg8 {[%clk 0:00:03.8]} 42. Rc8+ {[%clk 0:00:20.1]} 42... Kg7 {[%clk
0:00:04.2]} 43. Rc7 {[%clk 0:00:21]} 43... Kg8 {[%clk 0:00:04.7]} 1/2-1/2

[Event "*** Titled Tuesday Blitz"]
[Site "Chess.com"]
[Date "2021.03.09"]
[Round "7"]
[White "AliKa2810"]
[Black "Durarbayli"]
[Result "0-1"]
[WhiteElo "2547"]
[BlackElo "2682"]
[TimeControl "180+1"]
[EndTime "11:21:54 PST"]
[Termination "Durarbayli won by resignation"]

1. c4 {[%clk 0:03:00.9]} 1... c6 {[%clk 0:02:57.6]} 2. d4 {[%clk 0:02:57.2]}
2... d5 {[%clk 0:02:57.3]} 3. cxd5 {[%clk 0:02:57.3]} 3... cxd5 {[%clk
0:02:58.2]} 4. Bg5 {[%clk 0:02:57.3]} 4... f6 {[%clk 0:02:54.8]} 5. Bh4 {[%clk
0:02:11.1]} 5... Nc6 {[%clk 0:02:48]} 6. Nc3 {[%clk 0:02:10.2]} 6... Nh6 {[%clk
0:02:44.7]} 7. f3 {[%clk 0:02:05]} 7... Nf5 {[%clk 0:02:24]} 8. Bf2 {[%clk
0:02:05.5]} 8... e5 {[%clk 0:02:22.7]} 9. e3 {[%clk 0:01:24]} 9... exd4 {[%clk
0:02:19.7]} 10. exd4 {[%clk 0:01:24.9]} 10... Bb4 {[%clk 0:02:16.4]} 11. Bd3
{[%clk 0:01:24.4]} 11... O-O {[%clk 0:02:12.8]} 12. Ne2 {[%clk 0:01:24.2]} 12...
Re8 {[%clk 0:02:12.4]} 13. O-O {[%clk 0:01:24.2]} 13... Ne3 {[%clk 0:02:11.7]}
14. Bxe3 {[%clk 0:01:23.2]} 14... Rxe3 {[%clk 0:02:12.6]} 15. Qd2 {[%clk
0:01:15.5]} 15... Re8 {[%clk 0:02:06.3]} 16. Rae1 {[%clk 0:01:07.8]} 16... Be6
{[%clk 0:02:01.2]} 17. a3 {[%clk 0:00:56.5]} 17... Ba5 {[%clk 0:02:00.1]} 18.
Kh1 {[%clk 0:00:47.3]} 18... Bf7 {[%clk 0:01:57.4]} 19. Qf4 {[%clk 0:00:43.5]}
19... Bc7 {[%clk 0:01:53.1]} 20. Qh4 {[%clk 0:00:43.2]} 20... h5 {[%clk
0:01:46.3]} 21. Ng3 {[%clk 0:00:31.6]} 21... Rxe1 {[%clk 0:01:41]} 22. Rxe1
{[%clk 0:00:31.5]} 22... g6 {[%clk 0:01:23.4]} 23. Qh3 {[%clk 0:00:21.9]} 23...
Nxd4 {[%clk 0:01:17.4]} 24. Nce2 {[%clk 0:00:20.9]} 24... Qe7 {[%clk 0:01:08.6]}
25. Rc1 {[%clk 0:00:18.7]} 25... Nxe2 {[%clk 0:01:07.7]} 26. Nxe2 {[%clk
0:00:18.7]} 26... Re8 {[%clk 0:01:05]} 27. Qh4 {[%clk 0:00:11.3]} 27... Be5
{[%clk 0:00:58.7]} 28. Nd4 {[%clk 0:00:06.2]} 28... Bd6 {[%clk 0:00:31]} 29. Qf2
{[%clk 0:00:06.2]} 29... Qe5 {[%clk 0:00:25.9]} 30. g3 {[%clk 0:00:06.5]} 30...
Qe3 {[%clk 0:00:24.3]} 31. Qxe3 {[%clk 0:00:05]} 31... Rxe3 {[%clk 0:00:25.2]}
32. Rd1 {[%clk 0:00:05.5]} 32... Bc5 {[%clk 0:00:17.1]} 33. Nb3 {[%clk
0:00:05.3]} 33... Bb6 {[%clk 0:00:17.3]} 34. Kg2 {[%clk 0:00:05.9]} 34... Kg7
{[%clk 0:00:17.7]} 35. Bc2 {[%clk 0:00:04.8]} 35... Re2+ {[%clk 0:00:15.9]} 36.
Kh3 {[%clk 0:00:04.7]} 36... Be6+ {[%clk 0:00:13.8]} 37. g4 {[%clk 0:00:03.8]}
37... hxg4+ {[%clk 0:00:14.7]} 38. fxg4 {[%clk 0:00:04]} 38... Rxc2 {[%clk
0:00:15.6]} 39. Nd4 {[%clk 0:00:03.6]} 39... Bxd4 {[%clk 0:00:15.1]} 40. Rxd4
{[%clk 0:00:04.5]} 40... Rxb2 {[%clk 0:00:15.7]} 0-1

[Event "*** Titled Tuesday Blitz"]
[Site "Chess.com"]
[Date "2021.03.09"]
[Round "7"]
[White "Ajedrez_con_German"]
[Black "kingofthenil"]
[Result "0-1"]
[WhiteElo "2539"]
[BlackElo "2778"]
[TimeControl "180+1"]
[EndTime "11:21:54 PST"]
[Termination "kingofthenil won on time"]

1. Nf3 {[%clk 0:03:00.9]} 1... Nf6 {[%clk 0:02:59.7]} 2. b3 {[%clk 0:02:54.5]}
2... d5 {[%clk 0:02:49.6]} 3. Bb2 {[%clk 0:02:54.6]} 3... Bg4 {[%clk 0:02:49.6]}
4. e3 {[%clk 0:02:50.7]} 4... Nbd7 {[%clk 0:02:49.4]} 5. Be2 {[%clk 0:02:50.5]}
5... e6 {[%clk 0:02:48.2]} 6. O-O {[%clk 0:02:50.7]} 6... Bd6 {[%clk 0:02:43.3]}
7. c4 {[%clk 0:02:50.4]} 7... c6 {[%clk 0:02:38.2]} 8. cxd5 {[%clk 0:02:50.1]}
8... exd5 {[%clk 0:02:38.6]} 9. d3 {[%clk 0:02:51]} 9... O-O {[%clk 0:02:37.1]}
10. Nbd2 {[%clk 0:02:50.8]} 10... Re8 {[%clk 0:02:37.2]} 11. Re1 {[%clk
0:02:50.7]} 11... a5 {[%clk 0:02:37]} 12. a3 {[%clk 0:02:50.8]} 12... h6 {[%clk
0:02:36.6]} 13. Bf1 {[%clk 0:02:50.9]} 13... Qc7 {[%clk 0:02:34.7]} 14. Qc2
{[%clk 0:02:49.9]} 14... Bh5 {[%clk 0:02:28.6]} 15. Bc3 {[%clk 0:02:49.3]} 15...
Qb6 {[%clk 0:02:20.4]} 16. Qb2 {[%clk 0:02:46.5]} 16... Qc7 {[%clk 0:02:18.4]}
17. b4 {[%clk 0:02:43.2]} 17... axb4 {[%clk 0:02:17]} 18. axb4 {[%clk
0:02:43.2]} 18... Bg6 {[%clk 0:02:14]} 19. Rxa8 {[%clk 0:02:42.3]} 19... Rxa8
{[%clk 0:02:14.3]} 20. Ra1 {[%clk 0:02:41.9]} 20... Qb8 {[%clk 0:02:13.5]} 21.
h3 {[%clk 0:02:33.4]} 21... Be7 {[%clk 0:02:06.9]} 22. Ra3 {[%clk 0:02:23.2]}
22... Bf5 {[%clk 0:01:52.8]} 23. Qa1 {[%clk 0:02:22.1]} 23... Rxa3 {[%clk
0:01:51.9]} 24. Qxa3 {[%clk 0:02:23]} 24... Bd6 {[%clk 0:01:42.3]} 25. Nd4
{[%clk 0:02:20.8]} 25... Bg6 {[%clk 0:01:41.9]} 26. N4f3 {[%clk 0:02:11.9]}
26... Bf5 {[%clk 0:01:41.3]} 27. Nd4 {[%clk 0:02:11.6]} 27... Bg6 {[%clk
0:01:41.6]} 28. N4f3 {[%clk 0:02:11.9]} 28... Ne8 {[%clk 0:01:39]} 29. Qb2
{[%clk 0:02:02.4]} 29... Bf8 {[%clk 0:01:35.5]} 30. d4 {[%clk 0:02:01.7]} 30...
Nd6 {[%clk 0:01:34.5]} 31. b5 {[%clk 0:01:59.8]} 31... cxb5 {[%clk 0:01:03.4]}
32. Bxb5 {[%clk 0:01:58.9]} 32... Nb6 {[%clk 0:01:03.6]} 33. Ne5 {[%clk
0:01:39.4]} 33... Bf5 {[%clk 0:00:53.2]} 34. Ba5 {[%clk 0:01:22.5]} 34... Qa7
{[%clk 0:00:35]} 35. Bc3 {[%clk 0:00:35.9]} 35... Na4 {[%clk 0:00:32.2]} 36.
Bxa4 {[%clk 0:00:35.3]} 36... Qxa4 {[%clk 0:00:32.3]} 37. Qa1 {[%clk 0:00:26.6]}
37... Qc2 {[%clk 0:00:21.9]} 38. Ndf3 {[%clk 0:00:20.1]} 38... Ne4 {[%clk
0:00:19]} 39. Be1 {[%clk 0:00:20.1]} 39... b5 {[%clk 0:00:18.6]} 40. g4 {[%clk
0:00:17]} 40... Be6 {[%clk 0:00:18.7]} 41. Qa5 {[%clk 0:00:05.3]} 41... b4
{[%clk 0:00:19.1]} 42. Qa1 {[%clk 0:00:02.6]} 42... b3 {[%clk 0:00:19.3]} 0-1

[Event "*** Titled Tuesday Blitz"]
[Site "Chess.com"]
[Date "2021.03.09"]
[Round "7"]
[White "albi1999"]
[Black "Alex-11211"]
[Result "0-1"]
[WhiteElo "2587"]
[BlackElo "2430"]
[TimeControl "180+1"]
[EndTime "11:21:54 PST"]
[Termination "Alex-11211 won by checkmate"]

1. d4 {[%clk 0:03:00.9]} 1... Nf6 {[%clk 0:02:59.5]} 2. c4 {[%clk 0:03:00.6]}
2... c5 {[%clk 0:02:59.6]} 3. d5 {[%clk 0:03:00.6]} 3... g6 {[%clk 0:03:00.1]}
4. Nc3 {[%clk 0:03:00.4]} 4... Bg7 {[%clk 0:03:01]} 5. e4 {[%clk 0:02:59.9]}
5... O-O {[%clk 0:03:01.9]} 6. Nge2 {[%clk 0:02:51.5]} 6... d6 {[%clk
0:03:01.6]} 7. Ng3 {[%clk 0:02:51.3]} 7... e6 {[%clk 0:03:02.1]} 8. Be2 {[%clk
0:02:51.2]} 8... exd5 {[%clk 0:03:00.9]} 9. cxd5 {[%clk 0:02:52.1]} 9... a6
{[%clk 0:02:56.1]} 10. a4 {[%clk 0:02:52]} 10... Nbd7 {[%clk 0:02:56.2]} 11. O-O
{[%clk 0:02:48.7]} 11... Re8 {[%clk 0:02:55.9]} 12. Be3 {[%clk 0:02:44.4]} 12...
h5 {[%clk 0:02:54.7]} 13. f3 {[%clk 0:02:42.8]} 13... h4 {[%clk 0:02:33.3]} 14.
Nh1 {[%clk 0:02:41.5]} 14... Nh5 {[%clk 0:02:33.6]} 15. Qd2 {[%clk 0:02:36.3]}
15... Ne5 {[%clk 0:02:31]} 16. Nf2 {[%clk 0:02:32.2]} 16... f5 {[%clk
0:02:01.8]} 17. f4 {[%clk 0:02:18]} 17... Ng4 {[%clk 0:01:59.9]} 18. Nxg4 {[%clk
0:02:17.4]} 18... fxg4 {[%clk 0:02:00.8]} 19. Bd3 {[%clk 0:02:09.9]} 19... g3
{[%clk 0:01:06.3]} 20. h3 {[%clk 0:02:07]} 20... Bd7 {[%clk 0:01:03.6]} 21. Rae1
{[%clk 0:02:03.1]} 21... b5 {[%clk 0:00:43.5]} 22. e5 {[%clk 0:01:54.6]} 22...
Bf5 {[%clk 0:00:43.2]} 23. axb5 {[%clk 0:01:47.3]} 23... dxe5 {[%clk 0:00:33.5]}
24. fxe5 {[%clk 0:01:34.2]} 24... Rxe5 {[%clk 0:00:34.4]} 25. Bxc5 {[%clk
0:01:24.8]} 25... Rxe1 {[%clk 0:00:25.1]} 26. Rxe1 {[%clk 0:01:23.4]} 26... axb5
{[%clk 0:00:23.5]} 27. Bxb5 {[%clk 0:01:11.8]} 27... Rc8 {[%clk 0:00:10.2]} 28.
Re8+ {[%clk 0:01:03.8]} 28... Qxe8 {[%clk 0:00:09.3]} 29. Bxe8 {[%clk
0:01:04.7]} 29... Rxe8 {[%clk 0:00:10.1]} 30. d6 {[%clk 0:01:00.7]} 30... Bh6
{[%clk 0:00:09.5]} 31. Qd5+ {[%clk 0:00:38]} 31... Kh7 {[%clk 0:00:07]} 32. Kf1
{[%clk 0:00:23]} 32... Bg7 {[%clk 0:00:03]} 33. Bd4 {[%clk 0:00:19.2]} 33... Nf4
{[%clk 0:00:02.5]} 34. Bxg7 {[%clk 0:00:03.2]} 34... Bd3+ {[%clk 0:00:02.7]} 35.
Qxd3 {[%clk 0:00:02.9]} 35... Nxd3 {[%clk 0:00:03.1]} 36. Bf6 {[%clk 0:00:02.4]}
36... Re1# {[%clk 0:00:03]} 0-1

[Event "*** Titled Tuesday Blitz"]
[Site "Chess.com"]
[Date "2021.03.09"]
[Round "7"]
[White "buhomurciano"]
[Black "JiiHart"]
[Result "0-1"]
[WhiteElo "2206"]
[BlackElo "2074"]
[TimeControl "180+1"]
[EndTime "11:21:54 PST"]
[Termination "JiiHart won on time"]

1. e4 {[%clk 0:01:46]} 1... c5 {[%clk 0:02:59.5]} 2. Nc3 {[%clk 0:01:45.4]} 2...
Nc6 {[%clk 0:02:59.1]} 3. Bb5 {[%clk 0:01:45.2]} 3... g6 {[%clk 0:02:54.9]} 4.
Bxc6 {[%clk 0:01:44.4]} 4... dxc6 {[%clk 0:02:54.5]} 5. d3 {[%clk 0:01:44.4]}
5... Bg7 {[%clk 0:02:54.4]} 6. Be3 {[%clk 0:01:44.2]} 6... b6 {[%clk 0:02:53.1]}
7. f4 {[%clk 0:01:44.4]} 7... Nf6 {[%clk 0:02:38.8]} 8. Nf3 {[%clk 0:01:44.1]}
8... Ng4 {[%clk 0:02:33.3]} 9. Bg1 {[%clk 0:01:43.3]} 9... O-O {[%clk
0:01:54.3]} 10. Qd2 {[%clk 0:01:33.6]} 10... a5 {[%clk 0:01:50.9]} 11. h3 {[%clk
0:01:13.5]} 11... Nf6 {[%clk 0:01:49.8]} 12. g4 {[%clk 0:01:14]} 12... a4 {[%clk
0:01:47.9]} 13. a3 {[%clk 0:01:10.7]} 13... Qc7 {[%clk 0:01:37.9]} 14. f5 {[%clk
0:01:06.6]} 14... Rd8 {[%clk 0:01:30.4]} 15. Bh2 {[%clk 0:00:58.7]} 15... Qb7
{[%clk 0:01:21.4]} 16. Qg2 {[%clk 0:00:51.3]} 16... b5 {[%clk 0:01:14.6]} 17. h4
{[%clk 0:00:34.6]} 17... b4 {[%clk 0:01:05.3]} 18. axb4 {[%clk 0:00:32.5]} 18...
cxb4 {[%clk 0:01:05]} 19. Nd1 {[%clk 0:00:32.4]} 19... a3 {[%clk 0:01:02.6]} 20.
bxa3 {[%clk 0:00:18]} 20... bxa3 {[%clk 0:01:02.1]} 21. Rc1 {[%clk 0:00:16.8]}
21... a2 {[%clk 0:01:00.3]} 22. h5 {[%clk 0:00:12.4]} 22... a1=Q {[%clk
0:00:55.9]} 23. Rxa1 {[%clk 0:00:12]} 23... Rxa1 {[%clk 0:00:55.8]} 24. hxg6
{[%clk 0:00:12.2]} 24... fxg6 {[%clk 0:00:42]} 25. fxg6 {[%clk 0:00:13.1]} 25...
Qb1 {[%clk 0:00:39.8]} 26. O-O {[%clk 0:00:10.5]} 26... Qb6+ {[%clk 0:00:36.9]}
27. Kh1 {[%clk 0:00:10.1]} 27... Nxg4 {[%clk 0:00:35.9]} 28. gxh7+ {[%clk
0:00:09.4]} 28... Kh8 {[%clk 0:00:33.3]} 29. Ng5 {[%clk 0:00:09.3]} 29... Nh6
{[%clk 0:00:18.7]} 30. Bg1 {[%clk 0:00:04]} 30... Qb5 {[%clk 0:00:12.6]} 31. Be3
{[%clk 0:00:04.4]} 31... Qe5 {[%clk 0:00:08.8]} 32. Qf2 {[%clk 0:00:03.4]} 32...
Be6 {[%clk 0:00:06.5]} 33. Bf4 {[%clk 0:00:03.6]} 33... Qf6 {[%clk 0:00:06.1]}
34. e5 {[%clk 0:00:03]} 34... Qg6 {[%clk 0:00:05.5]} 35. Rg1 {[%clk 0:00:02.5]}
35... Qh5+ {[%clk 0:00:05.6]} 36. Bh2 {[%clk 0:00:01.6]} 36... Bd5+ {[%clk
0:00:05.7]} 0-1

[Event "*** Titled Tuesday Blitz"]
[Site "Chess.com"]
[Date "2021.03.09"]
[Round "7"]
[White "GigaQuparadze"]
[Black "Hikaru"]
[Result "0-1"]
[WhiteElo "2964"]
[BlackElo "3174"]
[TimeControl "180+1"]
[EndTime "11:21:55 PST"]
[Termination "Hikaru won by resignation"]

1. e4 {[%clk 0:03:00.9]} 1... c6 {[%clk 0:02:59.9]} 2. d4 {[%clk 0:03:00.4]}
2... d5 {[%clk 0:03:00.3]} 3. Nc3 {[%clk 0:03:00.6]} 3... g6 {[%clk 0:02:54.7]}
4. h3 {[%clk 0:02:58.3]} 4... Bg7 {[%clk 0:02:54.7]} 5. Nf3 {[%clk 0:02:58.4]}
5... dxe4 {[%clk 0:02:53]} 6. Nxe4 {[%clk 0:02:59.3]} 6... Nf6 {[%clk
0:02:53.9]} 7. Bd3 {[%clk 0:02:58.2]} 7... O-O {[%clk 0:02:52.7]} 8. O-O {[%clk
0:02:57.6]} 8... Nbd7 {[%clk 0:02:53.2]} 9. Nxf6+ {[%clk 0:02:52.9]} 9... exf6
{[%clk 0:02:49.2]} 10. c3 {[%clk 0:02:52.2]} 10... Re8 {[%clk 0:02:47.8]} 11.
Re1 {[%clk 0:02:51.5]} 11... Rxe1+ {[%clk 0:02:42.6]} 12. Qxe1 {[%clk
0:02:52.4]} 12... Qc7 {[%clk 0:02:40.8]} 13. Be3 {[%clk 0:02:49.6]} 13... Nb6
{[%clk 0:02:38.8]} 14. Qd2 {[%clk 0:02:49.3]} 14... Be6 {[%clk 0:02:38.8]} 15.
Bf4 {[%clk 0:02:47.6]} 15... Qd7 {[%clk 0:02:37.8]} 16. Bg3 {[%clk 0:02:44.8]}
16... a5 {[%clk 0:02:35.9]} 17. Bf1 {[%clk 0:02:40.7]} 17... a4 {[%clk
0:02:36.2]} 18. Qc2 {[%clk 0:02:36.9]} 18... Nc4 {[%clk 0:02:23.2]} 19. Nd2
{[%clk 0:02:34.3]} 19... Nxd2 {[%clk 0:02:21.3]} 20. Qxd2 {[%clk 0:02:35.2]}
20... b5 {[%clk 0:02:21.8]} 21. Qc2 {[%clk 0:02:21.3]} 21... Bf8 {[%clk
0:02:07]} 22. a3 {[%clk 0:02:21.1]} 22... Bb3 {[%clk 0:02:06.2]} 23. Qd3 {[%clk
0:02:19.9]} 23... Re8 {[%clk 0:02:06]} 24. Qd2 {[%clk 0:02:18.3]} 24... h5
{[%clk 0:01:58.5]} 25. Re1 {[%clk 0:02:15.6]} 25... Rxe1 {[%clk 0:01:58.2]} 26.
Qxe1 {[%clk 0:02:16.5]} 26... Bh6 {[%clk 0:01:58.6]} 27. Qe4 {[%clk 0:02:14.3]}
27... Bd5 {[%clk 0:01:52.4]} 28. Qc2 {[%clk 0:02:13.2]} 28... Qe6 {[%clk
0:01:51.9]} 29. Qb1 {[%clk 0:02:08]} 29... Ba2 {[%clk 0:01:39.1]} 30. Qa1 {[%clk
0:02:07.9]} 30... Bb3 {[%clk 0:01:39.3]} 31. Bd3 {[%clk 0:02:06.4]} 31... Bd5
{[%clk 0:01:34.8]} 32. Qd1 {[%clk 0:02:02.3]} 32... Kg7 {[%clk 0:01:33.3]} 33.
Qb1 {[%clk 0:01:43.2]} 33... Bg5 {[%clk 0:01:28.8]} 34. h4 {[%clk 0:01:39.3]}
34... Bh6 {[%clk 0:01:29]} 35. Qd1 {[%clk 0:01:39.3]} 35... Bb3 {[%clk
0:01:28.9]} 36. Qb1 {[%clk 0:01:39.2]} 36... Kg8 {[%clk 0:01:13]} 37. Qf1 {[%clk
0:01:36.5]} 37... Qg4 {[%clk 0:01:10.3]} 38. Be2 {[%clk 0:01:33.2]} 38... Qf5
{[%clk 0:01:10.3]} 39. Bf3 {[%clk 0:01:30.9]} 39... Bd5 {[%clk 0:01:04.6]} 40.
Bxd5 {[%clk 0:01:29.2]} 40... Qxd5 {[%clk 0:01:04.1]} 41. Qe2 {[%clk 0:01:23.3]}
41... Kg7 {[%clk 0:01:02.2]} 42. f3 {[%clk 0:01:20.7]} 42... Qa2 {[%clk
0:00:58.5]} 43. f4 {[%clk 0:01:17.9]} 43... Qd5 {[%clk 0:00:57.5]} 44. Kf2
{[%clk 0:01:17]} 44... Kg8 {[%clk 0:00:57.6]} 45. Qf3 {[%clk 0:01:16.5]} 45...
Qb3 {[%clk 0:00:54.5]} 46. Qe2 {[%clk 0:01:16.4]} 46... Bf8 {[%clk 0:00:54.2]}
47. f5 {[%clk 0:01:15.1]} 47... Kg7 {[%clk 0:00:51]} 48. fxg6 {[%clk 0:01:15.1]}
48... fxg6 {[%clk 0:00:51.9]} 49. Bf4 {[%clk 0:01:14.1]} 49... Kf7 {[%clk
0:00:52.4]} 50. g3 {[%clk 0:01:13.1]} 50... Qd5 {[%clk 0:00:52.3]} 51. Qf3
{[%clk 0:01:11.8]} 51... Qxf3+ {[%clk 0:00:49.8]} 52. Kxf3 {[%clk 0:01:12.7]}
52... Ke6 {[%clk 0:00:50.4]} 53. Ke4 {[%clk 0:01:12.6]} 53... Bd6 {[%clk
0:00:49.4]} 54. d5+ {[%clk 0:00:25]} 54... cxd5+ {[%clk 0:00:49.2]} 55. Kd4
{[%clk 0:00:24.8]} 55... Bxf4 {[%clk 0:00:42]} 56. gxf4 {[%clk 0:00:24.7]} 56...
g5 {[%clk 0:00:42]} 57. fxg5 {[%clk 0:00:24]} 57... fxg5 {[%clk 0:00:42.9]} 58.
hxg5 {[%clk 0:00:24.7]} 58... h4 {[%clk 0:00:42.9]} 59. Ke3 {[%clk 0:00:16.4]}
59... Kf5 {[%clk 0:00:42.2]} 0-1